[Event "Hungarian Junior Rapid-ch 2024"]
[Site "Budapest"]
[Date "2024.03.23"]
[Round "3.2"]
[White "Tancsa, Tamas"]
[Black "Karacsonyi, Gellert"]
[Result "1-0"]
[ECO "C00"]
[WhiteElo "2273"]
[BlackElo "2386"]
[Annotator "TA"]
[PlyCount "47"]
[EventDate "2024.03.20"]
[EventType "swiss"]
[EventCountry "HUN"]
[SourceTitle "playchess.com"]
[Source "ChessBase"]
[SourceQuality "1"]
[TimeControl "600+5"]

{[%evp 10,47,-7,-15,-6,-4,-9,-19,-16,-22,30,-16,-10,-35,37,-9,52,13,80,76,94,64,62,68,58,61,100,74,75,51,70,26,101,76,84,84,81,52,33,40]} 1. e4 {[%emt 0:00:03]} e6 {[%emt 0:00:06]} 2. d4 {[%emt 0:00:03]} d5 {[%emt 0:00:01]} 3. Bd3 {[%emt 0:00:02][%cal Bf1d3,Bd3e4,Be4f3][%mdl 32]} dxe4 {[%emt 0:00:02]} 4. Bxe4 {[%emt 0:00:01]} Nf6 {[%emt 0:00:01]} 5. Bf3 {[%emt 0:00:01]} c5 {[%emt 0:00:01]} 6. Ne2 {[%emt 0:00:07]} Be7 {[%emt 0:00:02]} 7. Be3 {[%emt 0:00:04]} O-O {[%emt 0:00:12]} 8. Nbc3 {[%emt 0:00:16]} Qc7 {[%emt 0:00:25] Die Stellung ist ausgeglichen.} 9. O-O {[%emt 0:01:03]} a6 {[%emt 0:00:01]} (9... Rd8 $142) 10. d5 {[%emt 0:00:29]} (10. Bf4 $142 Bd6 11. Bxd6 Qxd6 12. d5) 10... Rd8 $11 {[%emt 0:01:25]} 11. Nf4 {[%emt 0:00:02]} Bd6 {[%emt 0:01:06]} (11... e5 $15 12. d6 Qxd6 13. Qxd6 Bxd6) 12. g3 {[%emt 0:00:01]} (12. dxe6 $1 $14 {kam in Betracht.} Bxe6 13. Kh1) 12... Be5 {[%emt 0:00:01]} (12... e5 $11 13. Ng2 Re8) 13. Qd2 {[%emt 0:00:19]} Bxc3 {[%emt 0:02:44]} (13... Nc6 $11) 14. Qxc3 $16 {[%emt 0:00:04]} (14. bxc3 Nc6 $15) 14... exd5 {[%emt 0:01:32] [#] ...d4 wäre nun fies.} 15. Qxc5 {[%emt 0:00:31]} (15. Rfd1 {ist vielschichtiger.} Nc6 16. Nxd5 Nxd5 17. Bxd5 Bg4 18. f3) 15... Qxc5 {[%emt 0:00:02]} 16. Bxc5 {[%emt 0:00:02] Ein starkes Läuferpaar.} Nc6 {[%emt 0:00:32] Wehrt Be7 ab} 17. Rad1 {[%emt 0:00:32]} Be6 {[%emt 0:00:03][%cal Bc8e6,Be6f5,Bf5e4][%mdl 32]} 18. Rfe1 {[%emt 0:00:02]} Bf5 {[%emt 0:00:29]} 19. c3 {[%emt 0:01:45] Weiß steht aktiver.} ({Doch nicht} 19. Bxd5 $6 Bxc2 20. Rd2 Be4 $11) 19... Be4 {[%emt 0:00:01]} 20. Be2 {[%emt 0:00:10]} Ne5 {[%emt 0:00:09] Gegen f3 gerichtet.} (20... Nd7 $1 $11 {bleibt in der Remisbreite.} 21. Bd4 Nde5) 21. Be7 {[%emt 0:01:25]} Rd7 {[%emt 0:00:01]} 22. Bxf6 {[%emt 0:00:28]} gxf6 {[%emt 0:00:01]} 23. Rd2 {[%emt 0:00:04]} Rad8 {[%emt 0:00:10]} 24. Red1 {[%emt 0:00:14] Gewichteter Fehlerwert: Weiß=0.23 (präzise) /Schwarz=0.33.  Fehler:       	Weiß=2     	Schwarz=5     Ungenau:       	Weiß=4     	Schwarz=1     OK:         	Weiß=4     	Schwarz=5     Bester:       	---       	Schwarz=1} 1-0

[Event "Hungarian Junior Rapid-ch 2024"]
[Site "Budapest"]
[Date "2024.03.23"]
[Round "3.3"]
[White "Pasztor, Balazs"]
[Black "Daroczi, Donat"]
[Result "1/2-1/2"]
[ECO "B06"]
[WhiteElo "2406"]
[BlackElo "2171"]
[Annotator "TA"]
[PlyCount "42"]
[EventDate "2024.03.20"]
[EventType "swiss"]
[EventCountry "HUN"]
[SourceTitle "playchess.com"]
[Source "ChessBase"]
[SourceQuality "1"]
[TimeControl "600+5"]

{[%evp 9,42,18,56,15,4,11,46,41,44,57,72,56,56,15,16,16,14,27,24,21,27,8,17,16,10,10,0,4,8,6,0,0,5,8,10]} 1. e4 {[%emt 0:00:03]} g6 {[%emt 0:00:01]} 2. d4 {[%emt 0:00:02]} d6 {[%emt 0:00:01]} 3. Nf3 {[%emt 0:00:02]} Bg7 {[%emt 0:00:01]} 4. Be3 {[%emt 0:00:02]} a6 {[%emt 0:00:09]} 5. Qd2 {[%emt 0:00:17]} Bg4 {[%emt 0:00:10]} 6. Be2 {[%emt 0:00:15]} c5 {[%emt 0:00:05]} 7. Nc3 {[%emt 0:01:03]} ({Reject} 7. dxc5 Bxb2 8. Bd4 Bxa1 9. Bxa1 f6 10. cxd6 Qxd6 $15) 7... Bxf3 {[%emt 0:01:18]} 8. Bxf3 {[%emt 0:00:09] White is slightly better.} cxd4 {[%emt 0:00:01]} 9. Bxd4 {[%emt 0:00:02]} Nf6 {[%emt 0:00:02]} 10. Nd5 {[%emt 0:00:40] White is more active.} Nbd7 {[%emt 0:00:19] Against Bb6} 11. O-O {[%emt 0:01:07]} O-O {[%emt 0:00:01]} 12. Rad1 {[%emt 0:00:19]} Rc8 {[%emt 0:00:19]} 13. c3 {[%emt 0:01:12]} Re8 {[%emt 0:00:57]} 14. Nxf6+ {[%emt 0:00:04]} Bxf6 {[%emt 0:00:20]} 15. Bxf6 {[%emt 0:00:29]} Nxf6 {[%emt 0:00:01] [#] The position is equal.} 16. e5 $1 {[%emt 0:00:21]} dxe5 {[%emt 0:00:01]} 17. Bxb7 {[%emt 0:00:02]} Qxd2 {[%emt 0:03:02]} 18. Rxd2 {[%emt 0:00:02]} Rc7 {[%emt 0:00:07]} 19. Bxa6 {[%emt 0:01:22] a4 would now be deadly.} Ra8 {[%emt 0:00:01]} 20. Bb5 {[%emt 0:00:29] aiming for a4.} Rxa2 {[%emt 0:00:02]} 21. Re1 {[%emt 0:00:04][%cal Of2f3]} e4 {[%emt 0:01:21] Weighted Error Value: White=0.08 (flawless) /Black=0.07 (flawless) .  Inaccurate:     	White=1     	Black=1      OK:         	White=5     	Black=7      Best:        	White=1     	Black=2} 1/2-1/2

[Event "Hungarian Junior Rapid-ch 2024"]
[Site "Budapest"]
[Date "2024.03.23"]
[Round "3.4"]
[White "Konyves, Almos"]
[Black "Juhasz, Agoston"]
[Result "1/2-1/2"]
[ECO "A06"]
[WhiteElo "2306"]
[BlackElo "2406"]
[Annotator "TA"]
[PlyCount "39"]
[EventDate "2024.03.20"]
[EventType "swiss"]
[EventCountry "HUN"]
[SourceTitle "playchess.com"]
[Source "ChessBase"]
[SourceQuality "1"]
[TimeControl "600+5"]

{[%evp 17,39,1,4,0,0,-21,-13,-24,-23,-44,-38,-46,-31,-97,-91,-98,-93,-103,-36,-12,-14,-13,0,-4]} 1. Nf3 {[%emt 0:00:02]} d5 {[%emt 0:00:05]} 2. b3 {[%emt 0:00:03]} Bg4 {[%emt 0:00:11]} 3. Bb2 {[%emt 0:00:02]} Nd7 {[%emt 0:00:03]} 4. g3 {[%emt 0:00:01]} Ngf6 {[%emt 0:00:08]} 5. Bg2 {[%emt 0:00:02]} e6 {[%emt 0:00:01]} 6. O-O {[%emt 0:00:03]} Be7 {[%emt 0:00:08]} 7. c4 {[%emt 0:00:28]} O-O {[%emt 0:00:06]} 8. Nc3 {[%emt 0:00:26]} c6 {[%emt 0:00:15]} 9. d4 {[%emt 0:00:49]} h6 {[%emt 0:00:19]} 10. h3 {[%emt 0:00:55]} Bh5 {[%emt 0:00:39]} 11. a4 {[%emt 0:00:22]} Qa5 {[%emt 0:00:28]} 12. g4 {[%emt 0:01:05]} Bg6 {[%emt 0:00:02]} 13. Nd2 {[%emt 0:00:15]} Bb4 {[%emt 0:01:39]} 14. Rc1 {[%emt 0:00:02]} c5 {[%emt 0:00:43]} 15. dxc5 {[%emt 0:02:53]} (15. Ncb1 $15) 15... d4 $17 {[%emt 0:01:03]} 16. Nce4 {[%emt 0:00:14]} e5 {[%emt 0:01:17]} 17. f4 {[%emt 0:00:19] [#]} Bxe4 {[%emt 0:00:43]} ({Weaker is} 17... Bxc5 18. Nxc5 Nxc5 19. f5 $16 (19. fxe5 Nfd7 $16)) (17... Nxc5 18. f5 Nfxe4 19. Nxe4 $18) (17... exf4 $1 $17 {Hoping for ...Rfe8.} 18. Bxd4 Rad8 (18... Nxc5 19. Nxf6+ gxf6 20. Nb1 $15) 19. Rxf4 Nxc5 (19... Bxc5 20. Nxc5 Nxc5 21. Qe1 $11) 20. Nxc5 (20. Nxf6+ $2 gxf6 21. Nf3 Ne6 $19) 20... Bxd2 21. Nxb7 Be3+ 22. Bxe3 Rxd1+ 23. Rxd1 Qe5) 18. Nxe4 $15 {[%emt 0:00:06]} Nxe4 {[%emt 0:00:02]} (18... Bxc5 $2 {perishes.} 19. Nxc5 Nxc5 20. fxe5 $18) 19. Bxe4 {[%emt 0:00:01]} Nxc5 {[%emt 0:00:07]} 20. Bd5 {[%emt 0:00:40] Weighted Error Value: White=0.18 (very precise) /Black=0.09 (flawless) .  Mistake:       	White=1     	Black=1      OK:         	White=2     	Black=5      Best:        	White=1     	Black=1} 1/2-1/2

[Event "Hungarian Junior Rapid-ch 2024"]
[Site "Budapest"]
[Date "2024.03.23"]
[Round "3.5"]
[White "Palczert, Matyas"]
[Black "Panda, Barnabas"]
[Result "1-0"]
[ECO "B41"]
[WhiteElo "2297"]
[BlackElo "2066"]
[Annotator "TA"]
[PlyCount "52"]
[EventDate "2024.03.20"]
[EventType "swiss"]
[EventCountry "HUN"]
[SourceTitle "playchess.com"]
[Source "ChessBase"]
[SourceQuality "1"]
[TimeControl "600+5"]

{[%evp 11,52,30,26,19,30,22,62,60,60,58,62,50,65,53,56,52,55,56,64,55,72,72,74,98,91,108,90,114,234,241,241,248,248,245,270,268,286,295,329,318,322,287,287]} 1. e4 {[%emt 0:00:07]} c5 {[%emt 0:00:07]} 2. Nf3 {[%emt 0:00:02]} e6 {[%emt 0:00:02]} 3. d4 {[%emt 0:00:03]} cxd4 {[%emt 0:00:03]} 4. Nxd4 {[%emt 0:00:02]} a6 {[%emt 0:00:01]} 5. c4 {[%emt 0:00:02]} Nf6 {[%emt 0:00:03]} 6. Nc3 {[%emt 0:00:03]} Bb4 {[%emt 0:00:02]} 7. Qd3 {[%emt 0:00:08]} Qc7 {[%emt 0:00:19]} 8. a3 {[%emt 0:00:11]} Be7 {[%emt 0:00:10]} 9. Qg3 {[%emt 0:00:18] White is slightly better.} Qxg3 {[%emt 0:00:04]} 10. hxg3 {[%emt 0:00:02]} d6 {[%emt 0:01:09]} 11. f3 {[%emt 0:00:05] White has more active pieces.} Bd7 {[%emt 0:00:31]} 12. Be3 {[%emt 0:00:34][%cal Bc1e3,Be3f4,Bf4e5][%mdl 32]} Nc6 {[%emt 0:00:37]} 13. Nxc6 {[%emt 0:00:08]} Bxc6 {[%emt 0:00:03]} 14. O-O-O {[%emt 0:00:17]} Rc8 {[%emt 0:00:32]} 15. Kb1 {[%emt 0:00:16]} O-O {[%emt 0:00:21]} 16. g4 {[%emt 0:00:10]} Nd7 {[%emt 0:01:13]} 17. Bf4 {[%emt 0:00:18]} Ne5 {[%emt 0:00:27] [#]} 18. c5 $1 {[%emt 0:00:18]} Rfd8 {[%emt 0:00:25][%cal Bf8d8,Bd8d6,Bd6d7,Bd7b7][%mdl 32] [#]} 19. cxd6 $1 {[%emt 0:00:15]} Bxd6 {[%emt 0:00:04] [#]} (19... Ng6 $16 {is a better defense.}) 20. Rxd6 $1 $18 {[%emt 0:00:17][%mdl 512]} Rxd6 {[%emt 0:00:03]} 21. Bxe5 {[%emt 0:00:03]} Rd7 {[%emt 0:00:32]} 22. Be2 {[%emt 0:00:10]} f6 {[%emt 0:01:08]} 23. Bf4 {[%emt 0:00:04] White has a decisive advantage.} b5 {[%emt 0:00:05]} 24. g5 {[%emt 0:00:21]} Rb7 {[%emt 0:01:57]} 25. gxf6 {[%emt 0:00:11]} gxf6 {[%emt 0:00:02]} 26. e5 {[%emt 0:01:20]} f5 {[%emt 0:00:46] Weighted Error Value: White=0.04 (flawless) /Black=0.17 (very precise) .  Mistake:       	---       	Black=1      Inaccurate:     	---       	Black=1      OK:         	White=8     	Black=5      Strong:       	White=1     	---        Brilliant:      	White=2     	---} 1-0

[Event "Hungarian Junior Rapid-ch 2024"]
[Site "Budapest"]
[Date "2024.03.23"]
[Round "6"]
[White "Szikszai, Bertalan"]
[Black "Konyves, Almos"]
[Result "1/2-1/2"]
[ECO "C50"]
[WhiteElo "2312"]
[BlackElo "2306"]
[Annotator "RC"]
[PlyCount "136"]
[EventDate "2024.03.20"]
[EventType "swiss"]
[EventCountry "HUN"]
[SourceTitle "playchess.com"]
[Source "ChessBase"]
[SourceQuality "1"]
[TimeControl "600+5"]

1. e4 {[%emt 0:00:05]} e5 {[%emt 0:00:03]} 2. Nf3 {[%emt 0:00:02]} Nc6 {[%emt 0:00:01]} 3. Bc4 {[%emt 0:00:01]} Be7 {[%emt 0:00:02]} 4. d4 {[%emt 0:00:13]} d6 {[%emt 0:00:01]} 5. O-O {[%emt 0:00:04]} Nf6 {[%emt 0:00:01]} 6. Nc3 {[%emt 0:00:01]} O-O {[%emt 0:00:05]} 7. h3 {[%emt 0:00:02]} h6 {[%emt 0:00:03]} 8. Be3 {[%emt 0:00:18]} Re8 {[%emt 0:00:04]} 9. Re1 {[%emt 0:01:01]} Bf8 {[%emt 0:00:07]} 10. dxe5 {[%emt 0:00:08]} Nxe5 {[%emt 0:00:46]} 11. Bb3 {[%emt 0:00:22]} Bd7 {[%emt 0:00:20]} 12. Nd2 {[%emt 0:00:33]} Bc6 {[%emt 0:00:49]} 13. a4 {[%emt 0:00:29]} Ng6 {[%emt 0:01:00]} 14. Qf3 {[%emt 0:00:37]} Ne5 {[%emt 0:04:02]} 15. Qe2 {[%emt 0:02:23]} d5 {[%emt 0:00:26]} 16. Rad1 {[%emt 0:00:26]} dxe4 {[%emt 0:01:00]} 17. Ndxe4 {[%emt 0:00:06]} Nfd7 {[%emt 0:00:39]} 18. Qh5 {[%emt 0:01:12]} g6 {[%emt 0:00:37]} 19. Qe2 {[%emt 0:00:01]} Qe7 {[%emt 0:00:42]} 20. Bf4 {[%emt 0:01:06]} Bg7 {[%emt 0:00:27]} 21. Qe3 {[%emt 0:00:16]} g5 {[%emt 0:00:15]} 22. Bg3 {[%emt 0:00:17]} Ng6 {[%emt 0:00:10]} 23. Bxc7 {[%emt 0:00:50]} Nf6 {[%emt 0:00:10]} 24. Nxf6+ {[%emt 0:00:14]} Qxf6 {[%emt 0:00:01]} 25. Qg3 {[%emt 0:00:13]} Nh4 {[%emt 0:00:01]} 26. Nd5 {[%emt 0:00:30]} Bxd5 {[%emt 0:00:08]} 27. Bxd5 {[%emt 0:00:02]} Qxb2 {[%emt 0:00:05]} 28. Bb3 {[%emt 0:00:08]} Qf6 {[%emt 0:00:08]} 29. Qg4 {[%emt 0:00:29]} Ng6 {[%emt 0:00:04]} 30. Bg3 {[%emt 0:00:03]} Qb6 {[%emt 0:00:08]} 31. Qf5 {[%emt 0:00:05]} Qf6 {[%emt 0:00:02]} 32. Qxf6 {[%emt 0:00:05]} Bxf6 {[%emt 0:00:01]} 33. Rxe8+ {[%emt 0:00:05]} Rxe8 {[%emt 0:00:00]} 34. Rd7 {[%emt 0:00:11]} Re7 {[%emt 0:00:01]} 35. Rxe7 {[%emt 0:00:10]} Nxe7 {[%emt 0:00:07]} 36. Bb8 {[%emt 0:00:03]} Nc6 {[%emt 0:00:04]} 37. Bd6 {[%emt 0:00:03]} Be5 {[%emt 0:00:08]} 38. Bc5 {[%emt 0:00:04]} b6 {[%emt 0:00:01]} 39. Be3 {[%emt 0:00:04]} Bd4 {[%emt 0:00:08]} 40. Bd2 {[%emt 0:00:06]} Kf8 {[%emt 0:00:07]} 41. Kf1 {[%emt 0:00:01]} Ke7 {[%emt 0:00:02]} 42. Ke2 {[%emt 0:00:01]} f6 {[%emt 0:00:02]} 43. f4 {[%emt 0:00:10]} Bc5 {[%emt 0:00:13]} 44. fxg5 {[%emt 0:00:03]} hxg5 {[%emt 0:00:01]} 45. Kd3 {[%emt 0:00:05]} Bb4 {[%emt 0:00:14]} 46. Be3 {[%emt 0:00:14]} Bc5 {[%emt 0:00:09]} 47. Bc1 {[%emt 0:00:02]} Bd6 {[%emt 0:00:07]} 48. Ke4 {[%emt 0:00:02]} Bg3 {[%emt 0:00:06]} 49. Bd5 {[%emt 0:00:10]} Nb4 {[%emt 0:00:02]} 50. Bb3 {[%emt 0:00:02]} Nc6 {[%emt 0:00:00]} 51. Be3 {[%emt 0:00:03]} Bd6 {[%emt 0:00:06]} 52. Bf2 {[%emt 0:00:06]} Ne5 {[%emt 0:00:09]} 53. g3 {[%emt 0:00:07]} Nd7 {[%emt 0:00:07]} 54. h4 {[%emt 0:00:11]} gxh4 {[%emt 0:00:04]} 55. gxh4 {[%emt 0:00:01]} Nf8 {[%emt 0:00:07]} 56. Kf5 {[%emt 0:00:02]} Be5 {[%emt 0:00:03]} 57. h5 {[%emt 0:00:03]} Ke8 {[%emt 0:00:06]} 58. h6 {[%emt 0:00:04]} Ke7 {[%emt 0:00:03]} 59. Be3 {[%emt 0:00:01]} Kd6 {[%emt 0:00:05]} 60. Bc1 {[%emt 0:00:03]} Kc6 {[%emt 0:00:02]} 61. Ba3 {[%emt 0:00:02]} Nh7 {[%emt 0:00:01]} 62. Kg6 {[%emt 0:00:02]} Ng5 {[%emt 0:00:01]} 63. Bc1 {[%emt 0:00:13]} b5 {[%emt 0:00:03]} 64. axb5+ {[%emt 0:00:10]} Kxb5 {[%emt 0:00:01]} 65. Kf5 {[%emt 0:00:02]} Bc3 {[%emt 0:00:04]} 66. Bg8 {[%emt 0:00:02]} a5 {[%emt 0:00:03]} 67. h7 {[%emt 0:00:03]} Nxh7 {[%emt 0:00:02]} 68. Bxh7 {[%emt 0:00:01]} Kb4 {[%emt 0:00:04]} 1/2-1/2

[Event "Hungarian Junior Rapid-ch 2024"]
[Site "Budapest"]
[Date "2024.03.23"]
[Round "6"]
[White "Tancsa, Tamas"]
[Black "Pasztor, Balazs"]
[Result "1-0"]
[ECO "B56"]
[WhiteElo "2273"]
[BlackElo "2406"]
[Annotator "TA"]
[PlyCount "139"]
[EventDate "2024.03.20"]
[EventType "swiss"]
[EventCountry "HUN"]
[SourceTitle "playchess.com"]
[Source "ChessBase"]
[SourceQuality "1"]
[TimeControl "600+5"]

{[%evp 9,139,16,34,-21,-25,-30,-23,-19,-35,-25,-33,-22,-29,-33,-29,-29,-22,-31,-33,-52,0,0,0,0,0,-34,-28,-28,-29,-37,-20,-36,-41,-53,-13,-26,-29,-29,-22,-25,-22,-20,-29,-17,-14,-14,-7,-7,-16,-12,0,-4,-4,-5,0,0,0,-2,-8,-11,0,0,0,0,0,0,0,0,0,-6,23,21,32,31,44,37,38,2,29,29,29,29,25,2,27,1,16,16,59,16,304,304,304,304,304,304,307,307,304,304,307,307,308,310,974,979,1100,385,338,297,297,297,297,297,297,297,297,297,297,297,297,297,297,0,297,0,297,299,29972,29970,6404,6103]} 1. e4 {[%emt 0:00:12]} c5 {[%emt 0:00:01]} 2. Nf3 {[%emt 0:00:02]} d6 {[%emt 0:00:00]} 3. d4 {[%emt 0:00:04]} cxd4 {[%emt 0:00:02]} 4. Nxd4 {[%emt 0:00:02]} Nf6 {[%emt 0:00:01]} 5. Nc3 {[%emt 0:00:01]} Nc6 {[%emt 0:00:01]} 6. Nd5 {[%emt 0:00:12]} (6. Bb5 $14 Bd7 7. Bg5) 6... Nxd5 $1 $11 {[%emt 0:00:02]} 7. exd5 {[%emt 0:00:01]} Qa5+ {[%emt 0:00:01]} 8. Bd2 $1 {[%emt 0:00:01] Schwarz hat minimalen Vorteil.} Qxd5 {[%emt 0:00:01]} 9. Nb5 {[%emt 0:00:01]} Qe6+ 10. Be2 Qd7 {[%emt 0:00:02] Es drohte Nc7+} 11. c4 {[%emt 0:00:01]} e5 {[%emt 0:00:22]} 12. O-O {[%emt 0:00:17]} Be7 {[%emt 0:00:05]} 13. f4 {[%emt 0:00:49][%cal Bf2f4,Bf4f5,Bf5f6,Bf6g7][%mdl 32]} O-O {[%emt 0:01:37]} 14. f5 {[%emt 0:00:03]} a6 {[%emt 0:00:34]} (14... d5 $15 15. cxd5 Qxd5) 15. Nc3 {[%emt 0:00:02]} Nd4 {[%emt 0:00:05]} 16. Nd5 {[%emt 0:00:41]} Bd8 {[%emt 0:00:29]} (16... Nxf5 $2 {geht unter.} 17. Rxf5 Bd8 18. Rf1 $18) 17. f6 {[%emt 0:00:07]} Nxe2+ {[%emt 0:00:33]} 18. Qxe2 {[%emt 0:00:24] Und h3 würde nun gewinnen.} Qg4 {[%emt 0:00:08]} 19. Qd3 {[%emt 0:00:15]} Be6 {[%emt 0:01:43]} 20. fxg7 {[%emt 0:00:40]} Re8 {[%emt 0:00:56][%cal Og4g6]} 21. Bb4 {[%emt 0:00:27]} Rc8 {[%emt 0:01:21]} 22. b3 {[%emt 0:00:37]} (22. Bxd6 Qxc4 23. Qxc4 Rxc4 24. Nf6+ Bxf6 25. Rxf6 Re4 $14 (25... Kxg7 26. Bxe5 Kf8 27. Bc3 $14)) 22... Rc6 {[%emt 0:00:03]} 23. Rad1 {[%emt 0:01:22]} Qg6 {[%emt 0:00:32]} 24. Qxg6 {[%emt 0:02:50]} hxg6 {[%emt 0:00:05]} 25. Nf6+ $1 {[%emt 0:00:02]} Bxf6 $1 {[%emt 0:00:02]} 26. Rxf6 {[%emt 0:00:01]} Kxg7 {[%emt 0:00:03]} (26... d5 {ist vielschichtiger.} 27. cxd5 Bxd5 28. Rd6 Rxd6 29. Bxd6 Bc6) 27. Rf2 {[%emt 0:00:01]} Bg4 {[%emt 0:01:38]} 28. Rxd6 {[%emt 0:00:05]} Rxd6 {[%emt 0:00:10]} 29. Bxd6 {[%emt 0:00:02][%mdl 4096] Endspiel. KRB-KRB} e4 {[%emt 0:00:02]} 30. h3 {[%emt 0:00:01]} e3 {[%emt 0:00:02]} 31. Rf1 {[%emt 0:00:01]} Be2 {[%emt 0:00:34]} 32. Re1 {[%emt 0:00:07]} Bd3 {[%emt 0:00:01]} 33. Bc5 {[%emt 0:00:09]} e2 {[%emt 0:00:02][%cal Od3b1]} 34. Kf2 {[%emt 0:00:03]} b5 {[%emt 0:00:16]} 35. Bd4+ {[%emt 0:00:23]} f6 {[%emt 0:00:06]} 36. c5 {[%emt 0:00:00]} Re4 {[%emt 0:00:16]} 37. Be3 {[%emt 0:00:12]} Kf7 {[%emt 0:00:22]} 38. Rc1 {[%emt 0:00:42]} Ke8 {[%emt 0:00:10]} 39. Bd2 {[%emt 0:00:02]} Kd7 {[%emt 0:00:17]} 40. Rc3 {[%emt 0:00:23]} Bb1 {[%emt 0:00:03]} 41. a3 {[%emt 0:00:15]} Kc6 {[%emt 0:00:04]} 42. b4 {[%emt 0:00:02]} Ba2 {[%emt 0:00:08]} 43. Rg3 {[%emt 0:00:09]} Bf7 {[%emt 0:00:09]} 44. Re3 {[%emt 0:00:30]} Rxe3 {[%emt 0:00:10]} 45. Kxe3 {[%emt 0:00:02] KB-KB} Bc4 {[%emt 0:00:02]} 46. Kd4 {[%emt 0:00:01]} Kd7 {[%emt 0:00:06]} 47. h4 {[%emt 0:00:02]} Ke6 {[%emt 0:00:03]} 48. g4 {[%emt 0:00:03]} Bd5 {[%emt 0:00:12]} 49. h5 {[%emt 0:00:09] h6 ist eine echte Drohung.} gxh5 {[%emt 0:00:04][%mdl 8192]} (49... Bf3 $1 $11 {und Schwarz ist OK.}) 50. gxh5 $18 {[%emt 0:00:01]} Bc6 {[%emt 0:00:05]} 51. Ke3 {[%emt 0:00:08]} Kf7 {[%emt 0:00:16]} 52. Kxe2 {[%emt 0:00:02]} Kg7 {[%emt 0:00:02]} 53. Kf2 {[%emt 0:00:10]} Be8 {[%emt 0:00:02]} 54. h6+ {[%emt 0:00:03]} Kg6 {[%emt 0:00:01]} 55. Kg3 {[%emt 0:00:00]} Bc6 {[%emt 0:00:02]} 56. Kf4 {[%emt 0:00:02]} Bd5 $2 {[%emt 0:00:11]} (56... Bd7 57. Bc3 Bc6) 57. Bc3 {[%emt 0:00:16]} Bc6 {[%emt 0:00:02] [#]} 58. h7 $1 {[%emt 0:00:12][%mdl 512]} Kxh7 {[%emt 0:00:03]} 59. Bxf6 {[%emt 0:00:01]} Kg6 {[%emt 0:00:04]} 60. Bh4 {[%emt 0:00:03] Droht stark Ke5.} Kf7 {[%emt 0:00:04]} 61. Ke5 {[%emt 0:00:02] Droht Kd6 und aus.} Ke8 {[%emt 0:00:01]} 62. Kd6 {[%emt 0:00:00]} Bf3 {[%emt 0:00:02]} 63. c6 {[%emt 0:00:06][%cal Bc5c6,Bc6c7][%mdl 32]} Be4 {[%emt 0:00:02]} 64. Kc5 {[%emt 0:00:06]} Bf3 {[%emt 0:00:07]} 65. Kb6 {[%emt 0:00:01]} Be4 {[%emt 0:00:02]} 66. Kc5 {[%emt 0:00:44]} ({Und nicht} 66. Kxa6 Bxc6 67. Kb6 Bd7 $11) 66... Bf3 $1 {[%emt 0:00:01]} 67. Kd6 {[%emt 0:00:02]} Be4 $1 {[%emt 0:00:01]} 68. c7 {[%emt 0:00:11]} Bb7 $2 {[%emt 0:00:10]} (68... Bf5 $18 69. Bg3 Bh3) 69. Bg5 {[%emt 0:00:01]} Bc8 {[%emt 0:00:04]} 70. Kc6 {[%emt 0:00:00] Gewichteter Fehlerwert: Weiß=0.13 (sehr präzise) /Schwarz=0.17 (sehr präzise) .  Verlustzug:     	---       	Schwarz=1     Fehler:       	---       	Schwarz=3     Ungenau:       	Weiß=4     	Schwarz=4     OK:         	Weiß=26    	Schwarz=26    Bester:       	Weiß=3     	Schwarz=2     Stark:        	Weiß=2     	Schwarz=4} 1-0

[Event "Hungarian Junior Rapid-ch 2024"]
[Site "Budapest"]
[Date "2024.03.23"]
[Round "6"]
[White "Reviczki, Roland"]
[Black "Pasti, Aron"]
[Result "1-0"]
[ECO "B48"]
[WhiteElo "2238"]
[BlackElo "2373"]
[Annotator "RC"]
[PlyCount "95"]
[EventDate "2024.03.20"]
[EventType "swiss"]
[EventCountry "HUN"]
[SourceTitle "playchess.com"]
[Source "ChessBase"]
[SourceQuality "1"]
[TimeControl "600+5"]

1. e4 {[%emt 0:00:03]} c5 {[%emt 0:00:06]} 2. Nf3 {[%emt 0:00:04]} e6 {[%emt 0:00:01]} 3. d4 {[%emt 0:00:02]} cxd4 {[%emt 0:00:01]} 4. Nxd4 {[%emt 0:00:01]} Nc6 {[%emt 0:00:01]} 5. Nc3 {[%emt 0:00:01]} Qc7 {[%emt 0:00:01]} 6. Be3 {[%emt 0:00:10]} a6 {[%emt 0:00:01]} 7. Qf3 {[%emt 0:00:02]} Ne5 {[%emt 0:00:06]} 8. Qg3 {[%emt 0:00:12]} h5 {[%emt 0:00:01]} 9. Bf4 {[%emt 0:02:08]} d6 {[%emt 0:00:15]} 10. Bg5 {[%emt 0:00:02]} b5 {[%emt 0:00:13]} 11. f4 {[%emt 0:01:13]} Nc4 {[%emt 0:00:50]} 12. O-O-O {[%emt 0:00:05]} b4 {[%emt 0:00:07]} 13. Na4 {[%emt 0:00:02]} Bd7 {[%emt 0:00:11]} 14. Qb3 {[%emt 0:00:40]} Rc8 {[%emt 0:01:11]} 15. Bxc4 {[%emt 0:00:54]} Qxc4 {[%emt 0:00:05]} 16. Nb6 {[%emt 0:00:19]} Qxb3 {[%emt 0:00:07]} 17. Nxb3 {[%emt 0:00:24]} Rc7 {[%emt 0:00:21]} 18. Rd4 {[%emt 0:01:19]} Nf6 {[%emt 0:02:37]} 19. Bxf6 {[%emt 0:00:31]} gxf6 {[%emt 0:00:01]} 20. Nxd7 {[%emt 0:00:07]} Kxd7 {[%emt 0:00:02]} 21. Rhd1 {[%emt 0:01:34]} h4 {[%emt 0:00:06]} 22. Rxb4 {[%emt 0:00:48]} Rg8 {[%emt 0:00:01]} 23. g3 {[%emt 0:01:02]} hxg3 {[%emt 0:00:07]} 24. hxg3 {[%emt 0:00:01]} Rxg3 {[%emt 0:00:02]} 25. Rb6 {[%emt 0:00:11]} Rg4 {[%emt 0:00:10]} 26. e5 {[%emt 0:00:04]} d5 {[%emt 0:00:22]} 27. Rxa6 {[%emt 0:00:02]} Rxf4 {[%emt 0:00:07]} 28. exf6 {[%emt 0:00:02]} Bh6 {[%emt 0:00:13]} 29. Kb1 {[%emt 0:00:04]} Bg5 {[%emt 0:00:04]} 30. Nd4 {[%emt 0:00:12]} Bxf6 {[%emt 0:00:03]} 31. Nb5 {[%emt 0:00:01]} Rb7 {[%emt 0:02:55]} 32. a4 {[%emt 0:00:01]} Be5 {[%emt 0:00:01]} 33. c3 {[%emt 0:00:03]} f5 {[%emt 0:00:19]} 34. Kc2 {[%emt 0:00:10]} Re4 {[%emt 0:00:52]} 35. Rh1 {[%emt 0:00:06]} Re2+ {[%emt 0:00:00]} 36. Kb3 {[%emt 0:00:01]} Bh2 {[%emt 0:00:01]} 37. Ra8 {[%emt 0:00:07]} Rg2 {[%emt 0:00:49]} 38. Rh8 {[%emt 0:00:04]} Be5 {[%emt 0:00:01]} 39. R8h7+ {[%emt 0:00:14]} Kc6 {[%emt 0:00:10]} 40. Rxb7 {[%emt 0:00:01]} Kxb7 {[%emt 0:00:01]} 41. Rh6 {[%emt 0:00:02]} f4 {[%emt 0:00:17]} 42. Rxe6 {[%emt 0:00:01]} Bg7 {[%emt 0:00:09]} 43. a5 {[%emt 0:00:04]} Rg1 {[%emt 0:00:20]} 44. a6+ {[%emt 0:00:02]} Kc8 {[%emt 0:00:00]} 45. Re8+ {[%emt 0:00:21]} Kd7 {[%emt 0:00:00]} 46. a7 {[%emt 0:00:01]} Ra1 {[%emt 0:00:02]} 47. a8=Q {[%emt 0:00:02]} Rxa8 48. Rxa8 {[%emt 0:00:03]} 1-0